fUST/lending_fUST_20240912
["ID","MTS","AMOUNT","RATE_DAILY","PERIOD"]
[337781392,1726113043656,-500.0,0.00021917,2]
[337781393,1726113043666,-500.0,0.00021917,2]
[337781394,1726113043675,-500.0,0.00021917,2]
[337781395,1726113043684,-151.0,0.00021917,2]
[337781396,1726113043694,-500.0,0.00021917,2]
[337781397,1726113043704,-500.0,0.00021917,2]
[337781398,1726113043714,-500.0,0.00021917,2]
[337781399,1726113043725,-500.0,0.00021917,2]
[337781400,1726113043738,-883.88,0.00021917,2]
[337781401,1726113043749,-1566.91,0.00021917,2]
[337781402,1726113043759,-500.0,0.00021917,2]
[337781403,1726113043770,-151.0,0.00021917,2]
[337781404,1726113043779,-180.82810532,0.00021917,2]
[337781405,1726113043789,-151.0,0.00021917,2]
[337781406,1726113043799,-500.0,0.00021917,2]
[337781407,1726113043808,-1270.9,0.00021917,2]
[337781408,1726113043818,-500.0,0.00021917,2]
[337781409,1726113043827,-535.08,0.00021917,2]
[337781410,1726113043838,-976.27,0.00021917,2]
[337781411,1726113043847,-2658.09,0.00021917,2]
[337781412,1726113043857,-500.0,0.00021917,2]
[337781413,1726113043867,-500.0,0.00021917,2]
[337781414,1726113043878,-500.0,0.00021917,2]
[337781415,1726113043888,-1514.12,0.00021917,2]
[337781416,1726113043897,-500.0,0.00021917,2]
[337781417,1726113043908,-1973.91,0.00021917,2]
[337781418,1726113043917,-1324.83,0.00021917,2]
[337781419,1726113043927,-500.0,0.00021917,2]
[337781420,1726113043936,-500.0,0.00021917,2]
[337781421,1726113043944,-787.2,0.00021917,2]
[337781422,1726113043955,-224.65760659,0.00021917,2]
[337781423,1726113043965,-500.0,0.00021917,2]
[337781424,1726113043976,-500.0,0.00021917,2]
[337781425,1726113043986,-802.21,0.00021917,2]
[337781426,1726113043995,-500.0,0.00021917,2]
[337781427,1726113044005,-151.0,0.00021917,2]
[337781428,1726113044014,-500.0,0.00021917,2]
[337781429,1726113044023,-505.54166548,0.00021917,2]
[337781430,1726113044032,-500.0,0.00021917,2]
[337781431,1726113044042,-151.0,0.00021917,2]
[337781432,1726113044052,-500.0,0.00021917,2]
[337781433,1726113044061,-500.0,0.00021917,2]
[337781434,1726113044072,-500.0,0.00021917,2]
[337781435,1726113044082,-521.74,0.00021917,2]
[337781436,1726113044091,-500.0,0.00021917,2]
[337781437,1726113044101,-1120.39,0.00021917,2]
[337781438,1726113044111,-500.0,0.00021917,2]
[337781439,1726113044120,-605.18,0.00021917,2]
[337781440,1726113044129,-500.0,0.00021917,2]
[337781441,1726113044139,-22187.73,0.00021917,2]
[337781442,1726113044149,-500.0,0.00021917,2]
[337781443,1726113044159,-500.0,0.00021917,2]
[337781444,1726113044169,-508.16,0.00021917,2]
[337781445,1726113044179,-500.0,0.00021917,2]
[337781446,1726113044189,-500.0,0.00021917,2]
[337781447,1726113044198,-500.0,0.00021917,2]
[337781448,1726113044208,-2661.41,0.00021917,2]
[337781449,1726113044217,-512.63536904,0.00021917,2]
[337781450,1726113044227,-1056.07,0.00021917,2]
[337781451,1726113044238,-500.0,0.00021917,2]
[337781452,1726113044247,-502.15972482,0.00021917,2]
[337781453,1726113044258,-500.0,0.00021917,2]
[337781454,1726113044268,-500.0,0.00021917,2]
[337781456,1726113044278,-500.0,0.00021917,2]
[337781457,1726113044288,-500.0,0.00021917,2]
[337781458,1726113044298,-566.53,0.00021917,2]
[337781459,1726113044307,-1817.58,0.00021917,2]
[337781461,1726113044317,-500.0,0.00021917,2]
[337781462,1726113044326,-500.0,0.00021917,2]
[337781463,1726113044336,-502.78430225,0.00021917,2]
[337781465,1726113044345,-500.0,0.00021917,2]
[337781466,1726113044354,-558.44,0.00021917,2]
[337781467,1726113044364,-500.0,0.00021917,2]
[337781468,1726113044374,-500.0,0.00021917,2]
[337781469,1726113044383,-500.0,0.00021917,2]
[337781470,1726113044393,-500.0,0.00021917,2]
[337781471,1726113044404,-1292.16,0.00021917,2]
[337781472,1726113044415,-500.0,0.00021917,2]
[337781473,1726113044428,-500.0,0.00021917,2]
[337781474,1726113044438,-500.0,0.00021917,2]
[337781475,1726113044447,-500.0,0.00021917,2]
[337781476,1726113044456,-500.0,0.00021917,2]
[337781477,1726113044466,-1550.55,0.00021917,2]
[337781478,1726113044476,-1145.68,0.00021917,2]
[337781479,1726113044485,-500.0,0.00021917,2]
[337781480,1726113044495,-517.80010359,0.00021917,2]
[337781481,1726113044504,-794.517859,0.00021917,2]
[337781482,1726113044514,-500.0,0.00021917,2]
[337781483,1726113044523,-500.0,0.00021917,2]
[337781484,1726113044532,-794.517859,0.00021917,2]
[337781485,1726113044541,-502.93006318,0.00021917,2]
[337781486,1726113044551,-504.52373986,0.00021917,2]
[337781487,1726113044560,-500.0,0.00021917,2]
[337781488,1726113044571,-362.10017985,0.00021917,2]
[337781489,1726113044582,-749.94,0.00021917,2]
[337781490,1726113044592,-973.06,0.00021917,2]
[337781491,1726113044603,-500.0,0.00021917,2]
[337781492,1726113044612,-500.0,0.00021917,2]
[337781493,1726113044623,-500.0,0.00021917,2]
[337781494,1726113044632,-501.8925155,0.00021917,2]
[337781495,1726113044643,-500.0,0.00021917,2]
[337781496,1726113044655,-500.0,0.00021917,2]
[337781497,1726113044665,-500.0,0.00021917,2]
[337781498,1726113044675,-766.21,0.00021917,2]
[337781499,1726113044686,-500.0,0.00021917,2]
[337781500,1726113044697,-500.0,0.00021917,2]
[337781501,1726113044707,-500.0,0.00021917,2]
[337781502,1726113044717,-500.0,0.00021917,2]
[337781503,1726113044728,-500.0,0.00021917,2]
[337781504,1726113044737,-1062.15,0.00021917,2]
[337781505,1726113044747,-328.19776144,0.00021917,2]
[337781506,1726113044758,-1552.15,0.00021917,2]
[337781507,1726113044769,-1808.78,0.00021917,2]
[337781508,1726113044780,-500.0,0.00021917,2]
[337781509,1726113044793,-1387.74,0.00021917,2]
[337781510,1726113044803,-2247.96,0.00021917,2]
[337781511,1726113044814,-500.0,0.00021917,2]
[337781512,1726113044823,-546.58012675,0.00021917,2]
[337781513,1726113044833,-534.99,0.00021917,2]
[337781514,1726113044845,-500.0,0.00021917,2]
[337781515,1726113044854,-500.0,0.00021917,2]
[337781516,1726113044865,-248.68483715,0.00021917,2]
[337781517,1726113044875,-500.0,0.00021917,2]
[337781518,1726113044887,-500.0,0.00021917,2]
[337781519,1726113044898,-510.73912709,0.00021917,2]
[337781520,1726113044910,-537.56585578,0.00021917,2]
[337781521,1726113044921,-22037.83,0.00021917,2]
[337781522,1726113044931,-500.0,0.00021917,2]
[337781523,1726113044942,-151.0,0.00021917,2]
[337781524,1726113044953,-1032.85,0.00021917,2]
[337781525,1726113044963,-500.0,0.00021917,2]
[337781526,1726113044973,-508.34614554,0.00021917,2]
[337781527,1726113044982,-930.0,0.00021917,2]
[337781528,1726113044992,-1521.42,0.00021917,2]
[337781529,1726113045002,-500.0,0.00021917,2]
[337781530,1726113045011,-500.0,0.00021917,2]
[337781531,1726113045021,-646.8,0.00021917,2]
[337781532,1726113045030,-723.52,0.00021917,2]
[337781533,1726113045040,-490.37470131,0.00021917,2]
[337781534,1726113045050,-502.80020864,0.00021917,2]
[337781535,1726113045060,-500.0,0.00021917,2]
[337781536,1726113045069,-500.0,0.00021917,2]
[337781537,1726113045080,-501.25665635,0.00021917,2]
[337781538,1726113045090,-509.28939284,0.00021917,2]
[337781539,1726113045099,-590.33,0.00021917,2]
[337781540,1726113045109,-500.0,0.00021917,2]
[337781541,1726113045119,-504.20783263,0.00021917,2]
[337781542,1726113045129,-500.0,0.00021917,2]
[337781543,1726113045138,-631.56,0.00021917,2]
[337781544,1726113045147,-1649.99,0.00021917,2]
[337781545,1726113045157,-500.0,0.00021917,2]
[337781546,1726113045167,-500.0,0.00021917,2]
[337781547,1726113045177,-500.0,0.00021917,2]
[337781548,1726113045188,-500.0,0.00021917,2]
[337781549,1726113045199,-500.0,0.00021917,2]
[337781550,1726113045211,-461.85080887,0.00021917,2]
[337781551,1726113045220,-306.949319,0.00021917,2]
[337781552,1726113045232,-500.0,0.00021917,2]
[337781553,1726113045241,-500.0,0.00021917,2]
[337781554,1726113045251,-844.45,0.00021917,2]
[337781555,1726113045261,-564.06,0.00021917,2]
[337781556,1726113045270,-500.0,0.00021917,2]
[337781557,1726113045280,-1853.89,0.00021917,2]
[337781558,1726113045291,-184.57723403,0.00021917,2]
[337781559,1726113045300,-500.0,0.00021917,2]
[337781560,1726113045310,-306.949319,0.00021917,2]
[337781561,1726113045322,-1062.61,0.00021917,2]
[337781562,1726113045333,-1057.9,0.00021917,2]
[337781563,1726113045344,-500.0,0.00021917,2]
[337781564,1726113045354,-1090.97,0.00021917,2]
[337781565,1726113045364,-500.0,0.00021917,2]
[337781566,1726113045374,-393.57278461,0.00021917,2]
[337781567,1726113045384,-500.0,0.00021917,2]
[337781568,1726113045394,-500.0,0.00021917,2]
[337781569,1726113045404,-500.0,0.00021917,2]
[337781570,1726113045414,-500.0,0.00021917,2]
[337781571,1726113045423,-1961.12,0.00021917,2]
[337781572,1726113045605,-500.0,0.00021917,2]
[337781573,1726113045616,-500.0,0.00021917,2]
[337781574,1726113045627,-587.11,0.00021917,2]
[337781575,1726113045637,-500.0,0.00021917,2]
[337781576,1726113045648,-500.0,0.00021917,2]
[337781577,1726113045659,-500.0,0.00021917,2]
[337781578,1726113045669,-501.42777944,0.00021917,2]
[337781579,1726113045681,-500.0,0.00021917,2]
[337781580,1726113045691,-500.0,0.00021917,2]
[337781581,1726113045702,-500.0,0.00021917,2]
[337781582,1726113045711,-500.0,0.00021917,2]
[337781583,1726113045721,-500.0,0.00021917,2]
[337781584,1726113045731,-5343.4342254,0.00021917,2]
[337781602,1726113933119,-308.092362,0.00019027,2]
[337781603,1726113933141,-190.2398642,0.00019078,2]
[337781604,1726113933165,-29.6294179,0.000191,2]
[337781605,1726114009545,614.0515084,0.00019,2]
[337781606,1726114027149,-279.16339072,0.00019054,2]
[337781607,1726114145151,-300.0,0.00019054,2]
[337781608,1726114145172,-300.0,0.00019054,2]
[337781609,1726114145193,-3928.01507103,0.00019055,2]
[337781610,1726114148109,-20971.98492897,0.00019055,2]
[337781611,1726114148131,-2970.3705821,0.000191,2]
[337781612,1726114148152,-176.2208981,0.00019178,2]
[337781613,1726114148173,-201.6689492,0.00019211,2]
[337781614,1726114148195,-2816.19574143,0.0001934,2]
[337781615,1726114148215,-5909.7225824,0.00019404,2]
[337781616,1726114148240,-250.0,0.0001944,2]
[337781617,1726114148261,-250.0,0.00019493,2]
[337781618,1726114148283,-250.0,0.00019547,2]
[337781619,1726114148304,-250.0,0.000196,2]
[337781620,1726114148325,-250.0,0.00019653,2]
[337781621,1726114148348,-250.0,0.00019707,2]
[337781622,1726114148369,-250.0,0.0001976,2]
[337781623,1726114148391,-250.0,0.00019813,2]
[337781624,1726114148413,-250.0,0.00019867,2]
[337781625,1726114148437,-58.12316988,0.0001992,2]
[337781626,1726114149706,-191.87683012,0.0001992,2]
[337781627,1726114149730,-250.0,0.00019973,2]
[337781628,1726114149754,-250.0,0.00020027,2]
[337781629,1726114149776,-250.0,0.0002008,2]
[337781630,1726114149797,-250.0,0.00020133,2]
[337781631,1726114149818,-250.0,0.00020187,2]
[337781632,1726114149843,-157.834532,0.00020233,2]
[337781633,1726114149867,-157.834532,0.00020238,2]
[337781634,1726114150091,-250.0,0.0002024,2]
[337781635,1726114150113,-157.834532,0.00020243,2]
[337781636,1726114150135,-157.834532,0.00020248,2]
[337781637,1726114150158,-157.834532,0.00020254,2]
[337781638,1726114150178,-157.834532,0.00020259,2]
[337781639,1726114150201,-157.834532,0.00020264,2]
[337781640,1726114150224,-157.834532,0.0002027,2]
[337781641,1726114150247,-157.834532,0.00020275,2]
[337781642,1726114150270,-157.834532,0.0002028,2]
[337781643,1726114150291,-157.834532,0.00020286,2]
[337781644,1726114150313,-157.834532,0.00020291,2]
[337781645,1726114150336,-250.0,0.00020293,2]
[337781646,1726114150357,-157.834532,0.00020296,2]
[337781647,1726114150378,-157.834532,0.00020302,2]
[337781648,1726114150401,-157.834532,0.00020307,2]
[337781649,1726114150422,-157.834532,0.00020312,2]
[337781650,1726114150444,-157.834532,0.00020318,2]
[337781651,1726114150466,-157.834532,0.00020323,2]
[337781652,1726114150487,-157.834532,0.00020328,2]
[337781653,1726114150507,-157.834532,0.00020334,2]
[337781654,1726114150529,-250.0,0.00020346,2]
[337781655,1726114150551,-250.0,0.000204,2]
[337781656,1726114150571,-1016.15308977,0.00020435,2]
[337781657,1726114150591,-250.0,0.00020453,2]
[337781658,1726114150611,-192.70172254,0.00020518,2]
[337781659,1726114150631,-174.377889,0.00020618,2]
[337781660,1726114150652,-420.0,0.00020768,2]
[337781661,1726114150672,-251.0,0.00020822,2]
[337781662,1726114150692,-398.80312401,0.000209,2]
[337781663,1726114150712,-1100.02817927,0.00020979,2]
[337781664,1726114150731,-204.83951662,0.00020979,2]
[337781665,1726114161743,250.0,0.00021028,2]
[337781666,1726114161968,250.0,0.00021086,2]
[337781667,1726114162194,250.0,0.00021143,2]
[337781668,1726114162423,16.61084655,0.00021201,2]
[337781669,1726114168120,-191.96141069,0.00021201,2]
[337781671,1726114228901,229.0290086,0.00019,15]
[337781691,1726114238735,-41.42774276,0.00021201,2]
[337781692,1726114238747,-250.0,0.00021259,2]
[337781693,1726114238758,-250.0,0.00021316,2]
[337781694,1726114238769,-250.0,0.00021374,2]
[337781695,1726114238780,-250.0,0.00021432,2]
[337781696,1726114238790,-250.0,0.00021489,2]
[337781697,1726114238802,-250.0,0.00021547,2]
[337781698,1726114238813,-250.0,0.00021605,2]
[337781699,1726114238824,-250.0,0.00021662,2]
[337781700,1726114238834,-500.0,0.00021698,2]
[337781701,1726114238846,-500.0,0.00021698,2]
[337781702,1726114238856,-612.32227009,0.00021698,2]
[337781703,1726114238867,-500.0,0.00021698,2]
[337781704,1726114238878,-500.0,0.00021698,2]
[337781705,1726114238889,-500.0,0.00021698,2]
[337781706,1726114238900,-500.0,0.00021698,2]
[337781707,1726114238912,-500.0,0.00021698,2]
[337781708,1726114238924,-500.42293906,0.00021698,2]
[337781709,1726114238935,-250.0,0.0002172,2]
[337781710,1726114238947,-228.14681538,0.00021766,2]
[337781711,1726114238957,-250.0,0.00021778,2]
[337781712,1726114238968,-1488.64314789,0.00021817,2]
[337781713,1726114238979,-250.0,0.00021835,2]
[337781714,1726114238989,-18506.8400722,0.00021887,3]
[337781715,1726114239001,-250.0,0.00021893,2]
[337781716,1726114239012,-500.0,0.00021896,2]
[337781717,1726114239023,-500.0,0.00021896,2]
[337781718,1726114239034,-500.0,0.00021896,2]
[337781719,1726114239045,-500.0,0.00021896,2]
[337781720,1726114239056,-500.0,0.00021896,2]
[337781721,1726114239066,-382.79408671,0.00021896,2]
[337781722,1726114239077,-500.0,0.00021896,2]
[337781723,1726114239087,-500.0,0.00021896,2]
[337781724,1726114239098,-500.0,0.00021896,2]
[337781725,1726114239109,-342.91823307,0.00021896,2]
[337781726,1726114239119,-500.0,0.00021896,2]
[337781727,1726114239130,-500.0,0.00021896,2]
[337781728,1726114239141,-500.0,0.00021896,2]
[337781729,1726114239151,-500.0,0.00021896,2]
[337781730,1726114239164,-500.0,0.00021896,2]
[337781731,1726114239175,-500.0,0.00021896,2]
[337781732,1726114239186,-500.0,0.00021896,2]
[337781733,1726114239196,-242.12657313,0.00021896,2]
[337781734,1726114239208,-500.0,0.00021896,2]
[337781735,1726114239219,-500.0,0.00021896,2]
[337781736,1726114239231,-500.0,0.00021896,2]
[337781737,1726114239243,-500.0,0.00021896,2]
[337781738,1726114239255,-500.0,0.00021896,2]
[337781739,1726114239269,-500.0,0.00021896,2]
[337781740,1726114239280,-500.0,0.00021896,2]
[337781741,1726114239291,-500.0,0.00021896,2]
[337781742,1726114239301,-500.0,0.00021896,2]
[337781743,1726114239312,-500.0,0.00021896,2]
[337781744,1726114239323,-500.0,0.00021896,2]
[337781745,1726114239334,-61928.66049769,0.00021897,3]
[337781746,1726114239350,-30605.53986341,0.00021897,3]
[337781747,1726114239361,-150.112233,0.000219,3]
[337781748,1726114239372,-150.112233,0.000219,5]
[337781749,1726114239383,-150.112233,0.000219,3]
[337781750,1726114239394,-150.112233,0.000219,2]
[337781751,1726114239405,-285.31705652,0.00021906,2]
[337781752,1726114239415,-500.0,0.00021906,2]
[337781753,1726114239426,-381.09323933,0.00021906,2]
[337781754,1726114239437,-111041.040433,0.00021907,3]
[337781755,1726114239448,-160.0,0.00021916,2]
[337781756,1726114239458,-160.03653084,0.00021916,2]
[337781757,1726114239469,-151.0,0.00021917,2]
[337781758,1726114239480,-501.7708067,0.00021917,2]
[337781759,1726114239490,-500.0,0.00021917,2]
[337781760,1726114239501,-500.0,0.00021917,2]
[337781761,1726114239512,-395.95382375,0.00021917,2]
[337781762,1726114239522,-500.0,0.00021917,2]
[337781763,1726114239533,-500.0,0.00021917,2]
[337781764,1726114239543,-151.0,0.00021917,2]
[337781765,1726114239555,-151.0,0.00021917,2]
[337781766,1726114239565,-151.0,0.00021917,2]
[337781767,1726114239575,-151.0,0.00021917,2]
[337781768,1726114239586,-501.14499569,0.00021917,2]
[337781769,1726114239596,-500.0,0.00021917,2]
[337781770,1726114239607,-500.0,0.00021917,2]
[337781771,1726114239618,-500.0,0.00021917,2]
[337781772,1726114239629,-500.0,0.00021917,2]
[337781773,1726114239640,-500.0,0.00021917,2]
[337781774,1726114239651,-500.0,0.00021917,2]
[337781775,1726114239663,-762.2,0.00021917,2]
[337781776,1726114239674,-501.8790204,0.00021917,2]
[337781777,1726114239685,-500.0,0.00021917,2]
[337781778,1726114239696,-500.42116086,0.00021917,2]
[337781779,1726114239707,-500.0,0.00021917,2]
[337781780,1726114239718,-500.0,0.00021917,2]
[337781781,1726114239729,-1088.69,0.00021917,2]
[337781782,1726114239740,-500.0,0.00021917,2]
[337781783,1726114239751,-1278.69,0.00021917,2]
[337781784,1726114239762,-500.0,0.00021917,2]
[337781785,1726114239772,-505.19340467,0.00021917,2]
[337781786,1726114239783,-500.5743349,0.00021917,2]
[337781787,1726114239793,-507.55926875,0.00021917,2]
[337781788,1726114239804,-500.0,0.00021917,2]
[337781789,1726114239814,-606.49,0.00021917,2]
[337781790,1726114239825,-1505.36,0.00021917,2]
[337781791,1726114239837,-500.0,0.00021917,2]
[337781792,1726114239850,-1022.42,0.00021917,2]
[337781793,1726114239863,-504.92757202,0.00021917,2]
[337781794,1726114239874,-500.0,0.00021917,2]
[337781795,1726114239884,-508.23597583,0.00021917,2]
[337781796,1726114239895,-500.0,0.00021917,2]
[337781797,1726114239907,-500.0,0.00021917,2]
[337781798,1726114239917,-500.0,0.00021917,2]
[337781799,1726114239927,-500.0,0.00021917,2]
[337781800,1726114239937,-500.0,0.00021917,2]
[337781801,1726114239948,-501.85305581,0.00021917,2]
[337781802,1726114239958,-500.0,0.00021917,2]
[337781803,1726114239969,-500.0,0.00021917,2]
[337781804,1726114239979,-500.0,0.00021917,2]
[337781805,1726114239989,-500.0,0.00021917,2]
[337781806,1726114239998,-503.40207683,0.00021917,2]
[337781807,1726114240008,-500.0,0.00021917,2]
[337781808,1726114240017,-500.0,0.00021917,2]
[337781809,1726114240026,-507.34,0.00021917,2]
[337781810,1726114240036,-500.98842146,0.00021917,2]
[337781811,1726114240047,-500.0,0.00021917,2]
[337781812,1726114240057,-500.0,0.00021917,2]
[337781813,1726114240067,-502.23135201,0.00021917,2]
[337781815,1726114240373,-500.0,0.00021917,2]
[337781816,1726114240397,-500.0,0.00021917,2]
[337781817,1726114240414,-500.0,0.00021917,2]
[337781818,1726114240425,-500.71718067,0.00021917,2]
[337781819,1726114240435,-500.0,0.00021917,2]
[337781820,1726114240446,-500.0,0.00021917,2]
[337781821,1726114240457,-500.68038672,0.00021917,2]
[337781823,1726114240468,-500.0,0.00021917,2]
[337781825,1726114240478,-500.0,0.00021917,2]
[337781827,1726114240487,-500.0,0.00021917,2]
[337781829,1726114240497,-500.0,0.00021917,2]
[337781831,1726114240506,-556.03,0.00021917,2]
[337781833,1726114240516,-500.0,0.00021917,2]
[337781835,1726114240527,-500.0,0.00021917,2]
[337781838,1726114240539,-908.54,0.00021917,2]
[337781840,1726114240548,-500.83466742,0.00021917,2]
[337781842,1726114240558,-502.78382132,0.00021917,2]
[337781844,1726114240568,-500.0,0.00021917,2]
[337781846,1726114240577,-500.0,0.00021917,2]
[337781848,1726114240586,-500.0,0.00021917,2]
[337781850,1726114240595,-500.0,0.00021917,2]
[337781852,1726114240605,-304.08789527,0.00021917,2]
[337781854,1726114240614,-562.18,0.00021917,2]
[337781856,1726114240623,-500.0,0.00021917,2]
[337781858,1726114240632,-500.0,0.00021917,2]
[337781860,1726114240642,-500.0,0.00021917,2]
[337781862,1726114240652,-500.0,0.00021917,2]
[337781864,1726114240663,-808.63,0.00021917,2]
[337781866,1726114240672,-500.61431952,0.00021917,2]
[337781868,1726114240681,-1908.5,0.00021917,2]
[337781870,1726114240690,-500.0,0.00021917,2]
[337781871,1726114240700,-500.0,0.00021917,2]
[337781873,1726114240709,-500.0,0.00021917,2]
[337781875,1726114240718,-601.98244639,0.00021917,2]
[337781876,1726114240728,-502.29830061,0.00021917,2]
[337781878,1726114240737,-500.0,0.00021917,2]
[337781879,1726114240746,-500.0,0.00021917,2]
[337781880,1726114240755,-501.38098313,0.00021917,2]
[337781881,1726114240765,-500.0,0.00021917,2]
[337781882,1726114240774,-500.0,0.00021917,2]
[337781883,1726114240784,-500.0,0.00021917,2]
[337781884,1726114240793,-500.0,0.00021917,2]
[337781886,1726114240803,-500.0,0.00021917,2]
[337781888,1726114240812,-497.9229358,0.00021917,2]
[337781890,1726114240822,-500.0,0.00021917,2]
[337781892,1726114240831,-503.71503393,0.00021917,2]
[337781894,1726114240841,-486.5567268,0.00021917,2]
[337781896,1726114240850,-502.0736285,0.00021917,2]
[337781898,1726114240860,-500.0,0.00021917,2]
[337781900,1726114240869,-500.0,0.00021917,2]
[337781902,1726114240879,-500.0,0.00021917,2]
[337781904,1726114240888,-500.0,0.00021917,2]
[337781906,1726114240898,-511.12799535,0.00021917,2]
[337781908,1726114240908,-507.73872381,0.00021917,2]
[337781910,1726114240917,-524.15952806,0.00021917,2]
[337781912,1726114240926,-500.0,0.00021917,2]
[337781914,1726114240935,-500.0,0.00021917,2]
[337781916,1726114240945,-500.0,0.00021917,2]
[337781918,1726114240955,-503.01357476,0.00021917,2]
[337781920,1726114240964,-442.22506216,0.00021917,2]
[337781922,1726114240973,-500.0,0.00021917,2]
[337781924,1726114240982,-959.71,0.00021917,2]
[337781926,1726114240992,-500.0,0.00021917,2]
[337781928,1726114241001,-695.7,0.00021917,2]
[337781930,1726114241009,-795.02,0.00021917,2]
[337781932,1726114241018,-551.23,0.00021917,2]
[337781934,1726114241028,-500.0,0.00021917,2]
[337781935,1726114241037,-725.05,0.00021917,2]
[337781936,1726114241045,-988.02,0.00021917,2]
[337781938,1726114241056,-500.0,0.00021917,2]
[337781939,1726114241067,-500.90141478,0.00021917,2]
[337781940,1726114241076,-1437.06,0.00021917,2]
[337781941,1726114241086,-500.0,0.00021917,2]
[337781942,1726114241095,-500.0,0.00021917,2]
[337781943,1726114241104,-500.0,0.00021917,2]
[337781944,1726114241112,-500.0,0.00021917,2]
[337781945,1726114241122,-500.0,0.00021917,2]
[337781946,1726114241131,-500.0,0.00021917,2]
[337781947,1726114241140,-500.0,0.00021917,2]
[337781948,1726114241149,-1005.36,0.00021917,2]
[337781949,1726114241159,-500.0,0.00021917,2]
[337781950,1726114241169,-497.07445143,0.00021917,2]
[337781951,1726114241178,-541.41800902,0.00021917,2]
[337781952,1726114241187,-500.0,0.00021917,2]
[337781953,1726114241196,-1298.29,0.00021917,2]
[337781954,1726114241205,-500.0,0.00021917,2]
[337781955,1726114241214,-305.13595677,0.00021917,2]
[337781956,1726114241223,-500.0,0.00021917,2]
[337781957,1726114241233,-500.0,0.00021917,2]
[337781958,1726114241242,-500.0,0.00021917,2]
[337781959,1726114241251,-500.0,0.00021917,2]
[337781960,1726114241261,-500.0,0.00021917,2]
[337781961,1726114241274,-500.0,0.00021917,2]
[337781962,1726114241283,-500.0,0.00021917,2]
[337781963,1726114241293,-500.0,0.00021917,2]
[337781964,1726114241302,-500.0,0.00021917,2]
[337781965,1726114241312,-500.0,0.00021917,2]
[337781966,1726114241322,-383.81880261,0.00021917,2]
[337781967,1726114241333,-500.0,0.00021917,2]
[337781968,1726114241343,-500.0,0.00021917,2]
[337781969,1726114241354,-500.0,0.00021917,2]
[337781970,1726114241363,-500.0,0.00021917,2]
[337781971,1726114241373,-502.79949883,0.00021917,2]
[337781972,1726114241382,-500.0,0.00021917,2]
[337781973,1726114241392,-500.0,0.00021917,2]
[337781974,1726114241401,-2086.99,0.00021917,2]
[337781975,1726114241414,-500.0,0.00021917,2]
[337781976,1726114241423,-516.44227839,0.00021917,2]
[337781977,1726114241433,-620.84,0.00021917,2]
[337781978,1726114241445,-1265.69,0.00021917,2]
[337781979,1726114241454,-500.0,0.00021917,2]
[337781980,1726114241464,-500.0,0.00021917,2]
[337781981,1726114241474,-506.16393023,0.00021917,2]
[337781982,1726114241483,-501.80186464,0.00021917,2]
[337781983,1726114241493,-500.0,0.00021917,2]
[337781984,1726114241503,-501.34411749,0.00021917,2]
[337781985,1726114241512,-512.63536904,0.00021917,2]
[337781986,1726114241521,-500.0,0.00021917,2]